Cogmind - Beta 14 @@@ ROGUE MODE // 2025.01.16 @ 22:15:12 Player: refrshrs Result: Destroyed by G-47 Trooper with Particle Gun Performance ------------- Evolutions (2) 1000 Regions Visited (3) 600 Robots Destroyed (22) 110 Value Destroyed (567) 567 Prototype IDs (4) 80 Alien Tech Used (0) 0 Bonus (0) 0 TOTAL SCORE: 2357 Bonus ------- None Cogmind --------- Core Integrity 0/550 Matter 260/300 Energy 84/100 System Corruption 0% Temperature Cool (9) Movement Core (1400) Ox27 Location -8/Materials Parts ------- > --- POWER (2) -------- (None) > --- PROPULSION (3) --- (None) > --- UTILITY (3) ------ Huge Storage Unit > --- WEAPON (3) ------- Medium Laser > --- INVENTORY (25) --- Heat Sink Peak State ------------ > --- POWER ------------ Improved Ion Engine > --- PROPULSION ------- Advanced Treads Advanced Treads Advanced Treads > --- UTILITY ---------- Huge Storage Unit Improved Terrain Scanner Targeting Computer > --- WEAPON ----------- Improved EM Shotgun Shock Rifle Improved Assault Rifle > --- INVENTORY -------- Carbon-fiber Leg Heat Sink Medium Laser Small Laser Beam Cannon Assault Rifle [Rating: 25] Favorites ----------- Power Light Ion Engine Engine Light Ion Engine Propulsion Advanced Treads Treads Advanced Treads Leg Carbon-fiber Leg Wheel Wheel Utility Huge Storage Unit Device Improved Terrain Scanner Storage Huge Storage Unit Processor Targeting Computer Weapon Improved Assault Rifle Energy Gun Improved EM Shotgun Energy Cannon Beam Cannon Ballistic Gun Improved Assault Rifle Build | -11 -10 -9 -8 ------- Run | Yrd Mat Mat Mat Slots Evolved 4 | . . 2 2 Power 1 | . . 1 . Propulsion 1 | . . 1 . Utility 1 | . . . 1 Weapon 1 | . . . 1 Parts Attached 28 | 6 8 7 7 Power 2 | 1 . 1 . Engine 2 | 1 . 1 . Core . | . . . . Reactor . | . . . . Propulsion 7 | 2 . 4 1 Treads 3 | . . 3 . Leg 1 | . . . 1 Wheel 3 | 2 . 1 . Hover . | . . . . Flight . | . . . . Utility 5 | 1 3 . 1 Device 2 | . 1 . 1 Storage 2 | 1 1 . . Processor 1 | . 1 . . Hackware . | . . . . Protection . | . . . . Artifact . | . . . . Weapon 14 | 2 5 2 5 Energy Gun 8 | 1 2 2 3 Energy Cannon 1 | . . . 1 Ballistic Gun 5 | 1 3 . 1 Ballistic Cannon . | . . . . Launcher . | . . . . Special Weapon . | . . . . Impact Weapon . | . . . . Slashing Weapon . | . . . . Piercing Weapon . | . . . . Special Melee Weapon . | . . . . Unidentified Prototypes 2 | . 2 . . Parts Lost 13 | . . . 13 Power 1 | . . . 1 Propulsion 4 | . . . 4 Utility 2 | . . . 2 Weapon 6 | . . . 6 Highest Loss Streak 13 | . . . 13 To Critical Strikes . | . . . . Average Slot Usage (%) 88 | . 93 90 81 Engine 13 | . 14 16 8 Treads 17 | . . 20 24 Wheel 10 | . 28 9 . Device 3 | . 7 . 6 Storage 11 | . 14 11 9 Processor 8 | . . 11 8 Energy Gun 12 | . 13 10 14 Ballistic Gun 11 | . 14 11 8 Peak Build Rating 25 | 6 11 20 25 Average Rating 15 | 4 8 16 22 On Entrance 9 | . 6 11 19 Naked Turns . | . . . . Heaviest Build 97 | 12 90 96 97 Greatest Support 66 | 20 20 66 66 Greatest Overweight (x) 27 | . 4 4 27 Average Overweight (x) 1 | . . 2 1 Largest Inventory Capacity 25 | 8 25 25 25 Average Capacity 21 | 6 13 25 25 Most Carried 8 | 1 7 8 7 Average Carried 4 | . 2 5 5 Final Capacity 25 | 8 25 25 25 Final Carried 8 | . 3 8 1 Class Distribution -------------------- 82% | Mutant 17% | Gunner Dominant Class ---------------- Mutant | -10/Materials Mutant | -9/Materials Gunner | -8/Materials Resources | -11 -10 -9 -8 ----------- Run | Yrd Mat Mat Mat Matter Collected 504 | 228 45 215 16 Remotely . | . . . . Salvage Created 802 | . 45 345 412 Parts 52 | . 1 23 28 Haulers Intercepted . | . . . . Recyclers Shooed . | . . . . Parts Field Recycled . | . . . . Retrieved Matter . | . . . . Parts Self-Destructed . | . . . . Prevented . | . . . . Kills | -11 -10 -9 -8 ------- Run | Yrd Mat Mat Mat Combat Hostiles Destroyed 16 | . 1 7 8 Guns 14 | . 1 7 6 AOE 2 | . . . 2 Classes Destroyed 8 | . 1 3 4 Builder 1 | . . . 1 Recycler 2 | . . . 2 Watcher 3 | . . 1 2 Swarmer 6 | . . . 6 Grunt 5 | . 1 4 . Duelist 1 | . . 1 . Sentry 3 | . . 2 1 Specialist 1 | . . . 1 Best Kill Streak 5 | . 1 2 5 Combat Bots Only 4 | . 1 2 4 Max Kills in Single Turn 4 | . 1 1 4 Gunslinging 1 | . . . 1 Exploded 1 | . . . 1 Melee . | . . . . Uniques/NPCs Destroyed . | . . . . Combat | -11 -10 -9 -8 -------- Run | Yrd Mat Mat Mat Hostile Shots Fired 184 | . 9 42 133 Missed 53 | . 4 11 38 Damage Taken 2220 | . 58 393 1769 Core 645 | . 12 81 552 Absorbed by Shields . | . . . . Core Remaining (%) 91 | 100 95 79 . Volleys Fired 51 | . 3 23 25 Largest 3 | . 2 2 3 Hottest 118 | . 70 68 118 Shots Fired 91 | . 6 34 51 Gun 86 | . 6 34 46 Cannon 5 | . . . 5 Launcher . | . . . . Special . | . . . . Kinetic 43 | . 3 23 17 Thermal 12 | . 3 . 9 Explosive . | . . . . Electromagnetic 36 | . . 11 25 Robot Hit Streak 14 | . 6 8 14 Robot Miss Streak 5 | . . 2 5 Penetration Max . | . . . . Secondary Targets 2 | . . . 2 Max Gunslinging Chain 1 | . . . 1 Shots Hit Robots 74 | . 6 28 40 Core Hits 33 | . 2 15 16 Critical Kills . | . . . . Critical Parts Destroyed . | . . . . Critical Strikes 1 | . 1 . . Burn 1 | . 1 . . Melee Attacks . | . . . . Impact . | . . . . Slashing . | . . . . Piercing . | . . . . Sneak Attacks . | . . . . Combat Hostiles . | . . . . Follow-up Attacks . | . . . . Damage Inflicted 1421 | . 71 433 917 Guns 1006 | . 71 433 502 Cannons 87 | . . . 87 Explosions 323 | . . . 323 Melee . | . . . . Ramming 5 | . . . 5 Kinetic 521 | . 34 278 209 Thermal 266 | . 37 . 229 Explosive 229 | . . . 229 Electromagnetic 400 | . . 155 245 Impact . | . . . . Slashing . | . . . . Piercing . | . . . . Highest Corruption . | . . . . Average Corruption . | . . . . Corruption Purged . | . . . . Corruption Blocked . | . . . . Overload Shots . | . . . . Overflow Damage 19 | . . . 19 Projectiles . | . . . . Explosions 19 | . . . 19 Melee . | . . . . Knockbacks . | . . . . Impact . | . . . . Kinetic . | . . . . Secondary . | . . . . Self-Inflicted Damage 107 | . . . 107 Shots 2 | . . . 2 Rammed . | . . . . Targets Rammed 1 | . . . 1 Kicked . | . . . . Crushed 1 | . . . 1 Highest Temperature 411 | . 411 42 143 Average Temperature 61 | . 149 13 40 Received Heat Transfer 558 | . 30 168 360 Effects 3 | . 3 . . Interference 3 | . 3 . . Siege Activations . | . . . . Robots Corrupted 1 | . . . 1 Combat Hostiles . | . . . . Parts Fried 5 | . . . 5 Impact Corruptions . | . . . . Robots Melted . | . . . . Combat Hostiles . | . . . . Parts Melted 1 | . 1 . . Heat Transferred 594 | . 185 . 409 Parts Sabotaged . | . . . . Parts Stolen . | . . . . Parts Stripped . | . . . . Power Chain Reactions 2 | . . . 2 Alert | -11 -10 -9 -8 ------- Run | Yrd Mat Mat Mat Peak Influence 346 | . 137 285 346 Initial 57 | . . 57 46 Average 130 | . 91 123 186 Maximum Alert Level 1 | . . 1 1 Low Security (%) 80 | 100 100 84 57 Level 1 19 | . . 15 42 Level 2 . | . . . . Level 3 . | . . . . Level 4 . | . . . . Level 5 . | . . . . High Security . | . . . . Max Security . | . . . . Squads Dispatched 6 | . 2 2 2 Investigation 1 | . 1 . . Extermination . | . . . . Reinforcement 5 | . 1 2 2 Assault . | . . . . Garrison . | . . . . Intercept . | . . . . Searches Triggered . | . . . . Construction Impeded . | . . . . Haulers Reinforced . | . . . . Active Scanning Responses . | . . . . Cargo Convoy Interrupts . | . . . . Stealth | -11 -10 -9 -8 --------- Run | Yrd Mat Mat Mat Distress Signals 3 | . 1 1 1 Communications Jammed . | . . . . Distress Signals . | . . . . Times Spotted 36 | . 7 11 18 Peak Tracking Total 6 | . 3 3 6 Tactical Retreats 2 | . 2 . . Traps | -11 -10 -9 -8 ------- Run | Yrd Mat Mat Mat Traps Triggered . | . . . . Indirectly . | . . . . Trap Hack Attempts . | . . . . Triggered . | . . . . Disarmed . | . . . . Reprogrammed . | . . . . Reused . | . . . . Traps Extracted . | . . . . Installed . | . . . . Triggered 1 | . . . 1 Machines | -11 -10 -9 -8 ---------- Run | Yrd Mat Mat Mat Machines Disabled 1 | . . . 1 Max in Single Turn 1 | . . . 1 Machines Repaired . | . . . . Machines Dismantled . | . . . . Machines Sabotaged . | . . . . Overloaded Fab Kills . | . . . . Hacking | -11 -10 -9 -8 --------- Run | Yrd Mat Mat Mat Machines Accessed 9 | . 3 4 2 Terminals 8 | . 3 3 2 Fabricators . | . . . . Repair Stations 1 | . . 1 . Recycling Units . | . . . . Scanalyzers . | . . . . Garrison Access . | . . . . Total Hacks 22 | . 6 11 5 Successful 12 | . 3 6 3 Failed 10 | . 3 5 2 Catastrophic 2 | . 1 1 . Database Lockouts . | . . . . Manual 5 | . 3 2 . Terminals 18 | . 6 7 5 Fabricators . | . . . . Repair Stations 4 | . . 4 . Recycling Units . | . . . . Scanalyzers . | . . . . Garrison Access . | . . . . Terminal Hacks 10 | . 3 4 3 Record 8 | . 3 2 3 Prototype ID Bank 1 | . . 1 . Alert Level 1 | . . 1 . Fabricator Hacks . | . . . . Repair Station Hacks 2 | . . 2 . Scan Component 1 | . . 1 . Repair 1 | . . 1 . Recycling Unit Hacks . | . . . . Scanalyzer . | . . . . Garrison Access Hacks . | . . . . Unauthorized Hacks . | . . . . Terminals . | . . . . Fabricators . | . . . . Repair Stations . | . . . . Recycling Units . | . . . . Scanalyzers . | . . . . Garrison Access . | . . . . Data Cores Recovered . | . . . . Used . | . . . . Hacking Detections 7 | . 2 3 2 Full Trace Events 2 | . 1 1 . Feedback Events . | . . . . Feedback Blocked . | . . . . Robot Schematics Acquired . | . . . . Robots Built . | . . . . Authchips . | . . . . Time . | . . . . Total Robot Build Rating . | . . . . Part Schematics Acquired . | . . . . Parts Built . | . . . . Authchips . | . . . . Time . | . . . . Total Part Build Rating . | . . . . Parts Repaired . | . . . . Time 26 | . . 26 . Parts Recycled . | . . . . Recycled Matter . | . . . . Retrieved Matter . | . . . . Retrieved Components . | . . . . Parts Scanalyzed . | . . . . Part Schematics Acquired . | . . . . Parts Damaged . | . . . . Bothacking | -11 -10 -9 -8 ------------ Run | Yrd Mat Mat Mat Used RIF Installer . | . . . . Robots Hacked . | . . . . Non-combat . | . . . . Combat . | . . . . Robot Hacks Applied . | . . . . Relay Couplers Released . | . . . . Fabnet Peak Effective % . | . . . . Robots Rewired . | . . . . Allies Hacked . | . . . . Hacks Repelled . | . . . . Allies | -11 -10 -9 -8 -------- Run | Yrd Mat Mat Mat Total Allies . | . . . . Largest Group . | . . . . Highest-Rated Group . | . . . . Highest-Rated Ally . | . . . . Total Orders . | . . . . Ally Attacks . | . . . . Total Damage . | . . . . Kills . | . . . . Allies Corrupted . | . . . . Allies Melted . | . . . . Intel | -11 -10 -9 -8 ------- Run | Yrd Mat Mat Mat Robot Analysis Total . | . . . . Derelict Logs Recovered . | . . . . Drone Launches . | . . . . Drone Recoveries . | . . . . Exploration | -11 -10 -9 -8 ------------- Run | Yrd Mat Mat Mat Turns Passed 1505 | 52 325 689 439 Spaces Moved 860 | 57 306 343 154 Core 9 | 8 . . 1 Treads 327 | . . 176 151 Legs 2 | . . . 2 Wheels 522 | 49 306 167 . Hover . | . . . . Flight . | . . . . Fastest Speed 50 | 50 80 110 225 Average Speed 152 | 75 94 180 236 Slowest Speed 1400 | 80 140 465 1400 Overloaded Moves . | . . . . Propulsion Burnouts . | . . . . Robots Hopped . | . . . . Cave-ins Triggered . | . . . . Exploration Rate (%) 23 | 3 40 30 22 Regions Visited 3 Branch Regions . Pre-discovered Areas . | . . . . Known Exits Taken . | . . . . Unknown Exits Taken 3 | 1 1 1 . Scrap Searched . | . . . . Spaces Dug . | . . . . Terrain Destroyed 27 | . . . 27 Melee . | . . . . Projectile . | . . . . AOE 27 | . . . 27 Terrain Rammed . | . . . . Walls Destroyed . | . . . . Machines Disabled . | . . . . Actions | -11 -10 -9 -8 --------- Run | Yrd Mat Mat Mat Total 975 | 63 340 381 191 Wait 7 | . 7 . . Move 857 | 56 305 342 154 Hop . | . . . . Pick Up 11 | 1 6 3 1 Fast Attach 14 | 5 2 5 2 Attach 13 | 1 5 2 5 Detach 11 | . 6 5 . Swap 1 | . 1 . . Drop 9 | . 5 1 3 Fire 51 | . 3 23 25 Melee . | . . . . Ram . | . . . . Kick . | . . . . Crush 1 | . . . 1 Escape Stasis . | . . . . Rewire . | . . . . Trap . | . . . . Miscellaneous . | . . . . Route ------- -11/Scrapyard -10/Materials (discovered 2 exits: *Mat / [*Min]) -9/Materials -8/Materials (discovered 1 exit: [*Fac]) History --------- Turn | Location | Event 2 | -11/Scrapyard | Discovered new exit (range 16) 53 | -11/Scrapyard | Entered Materials 133 | -10/Materials | Discovered new exit (range 7) 150 | -10/Materials | Discovered new exit (range 13) 311 | -10/Materials | Build established: Mutant 378 | -10/Materials | Entered another Materials area 378 | -9/Materials | Evolved 2 slots: Power x1, Propulsion x1 1038 | -9/Materials | Discovered new exit (range 5) 1067 | -9/Materials | Entered another Materials area 1067 | -8/Materials | Evolved 2 slots: Utility x1, Weapon x1 1456 | -8/Materials | Discovered new exit (range 12) 1493 | -8/Materials | Core integrity fell below 50% 1500 | -8/Materials | Core integrity fell below 20% 1506 | -8/Materials | Destroyed by G-47 Trooper with Particle Gun Last Messages --------------- Critical hit (Blast). Penetrated by Slug. Shock Rifle destroyed. Slug penetrates Door. Carbon-fiber Leg destroyed. Penetrated by Slug. Knocked back. Penetrated by Slug. Targeting Computer destroyed. Critical hit (Blast). Beam Cannon destroyed. Terminal disabled. Slug penetrates Earth. H-61 Shepherd heat short circuits Arm. Treads. Knocked back. Acquired 1 matter. U-05 Engineer builds a Wall. Sml. Laser destroyed. Critical hit (Burn: +37). U-05 Engineer builds a Door. Map ----- +----------------------------------------------------+ | ??????????????????????????????????????? | | ??????????????????????????????????????? | | ??????????????????????????????????????? | | ??????????????????????????????????????? | | ??????????????????????????????????????? | | ?????????????????????????????#???#????? | | ????????????????????????? ????????????? | | ????????????????????????????##????????? | | ???????????????????? ??????? ##??????? | | ?????????????????????? ???? < ??????? | | ???????????????????????????? !?????? | | ??????????????????#####+???? ??????? | | ???????????????? ?? ???? ??????? | | ???????????????????? ???? ? ?????? | | ????????????????????? ???? ???????? | | ??????????????????#####g##### #???????? | | ??????????????????# Y # #???????? | | ??????????????????# w # ##??#???? | | ??????????????????# ! ; #???????? | | ??????????????????# %! #H#####???? | | ??????????????????# [![g/u #????? | | ??????????????????# x % ;### #????? | | ??????????????????# % ;#?#!#????? | | ??????????????????# #### ###?#? | | ???????????????#??#######;;;## |[ #??? | | ????????????????? ??? ?#@ # #??# | | ????????????????????????# + T #?#? | | ??????????#??????????? ?# # #?#? | | ??????????????????????? # =# ##?? | | ???????????#????????????# ## ##??? | | ????????????????????????# ## #???? | | ????????????????????????#! ## #??#? | | ???????????????????? ???# ## #???? | | ????????????????????????# ## #???? | | ??????????????????????######### #???? | | ????????????????? ????# # #?#?? | | ??????????????????????# + #???? | | ?????????????????? ?? # # ##??? | | ??????????????????????# # #??#? | | ??????????????????????######### #?#?? | | ?????????????????????????????## #???? | | ??????????????????????????????# #???? | | ????????????????????+????? ???# #??#? | | ????????????????????#???????### #???? | | ??????????????????#???"???????# #???? | | ??????????????????#???????????# #???? | | ????????????#?????????????????# #???? | | ??????????????????????#?????### #???? | | ??????????????????????? ???? + ##??? | | ????#????????????#???????"? ###+####? | +----------------------------------------------------+ Best States ------------- Heat Dissipation 31 Energy Generation 17 Energy Capacity 290 Matter Stores 300 Matter Capacity 300 Sight Range 16 Terrain Scan Range 16 Terrain Scan Density 10 Evasion (%) 44 Targeting Accuracy 5 Recoil Reduction 3 Item Schematics ----------------- None Robot Schematics ------------------ None Fabricated ------------ Nothing Alien Tech Used ----------------- None Achievements -------------- None Challenges ------------ None Game ------ Seed StasisLayeredBoomstick Manual? 0 Play Time 00:23:16 Cumulative 6.6 hours Start 2025.01.16 @ 21:53:08 End 2025.01.16 @ 22:15:12 Sessions 1 Manual Loads 0 Difficulty Rogue Special Mode None Game No. 18 Rogue 18 Adventurer 0 Explorer 0 Win Type - Total 0 Types 0/0/0/0/0/0/0/0/0 Lore% 7 Gallery% 13 Achievement% 14 Wizard Run 0 Options --------- Layout 1 ASCII 0 Keyboard 1 Movement Numpad Keybinds 0 Fullscreen 1 Font 32/SmallcapsGlow Map View 50x35 Zoom Use 0% Tactical HUD 0 Map Filters NONE Filters NONE Steam 1 RUN: 99c7ab43-0aba-4186-85e7-c5b820e25dc3